bitfinex-derivatives/quotes_ETHF0:USTF0_20250904
["timestamp","ask_amount","ask_price","bid_price","bid_amount"]
[1756955342269,0.329,4409.2,4408.1,0.4965]
[1756955342270,1.28084668,4409.2,4409.0,0.1251]
[1756955342469,0.56056706,4409.1,4409.0,0.4287]
[1756955342670,0.089,4409.2,4409.0,0.1251]
[1756955342875,0.089,4409.2,4409.1,0.3036]
[1756955343178,0.64961818,4409.2,4409.1,0.3036]
[1756955343776,0.089,4409.2,4409.1,0.3036]
[1756955344477,0.65068189,4409.2,4409.1,0.3036]
[1756955345078,0.089,4409.2,4409.1,0.3036]
[1756955345479,0.65108234,4409.2,4409.1,0.3036]
[1756955346775,0.94538234,4409.2,4408.5,0.1251]
[1756955346983,0.56208234,4409.1,4408.5,0.4287]
[1756955347882,0.089,4409.0,4408.5,0.1251]
[1756955348184,0.2943,4408.8,4408.6,0.3036]
[1756955348386,0.85638234,4408.7,4408.1,0.3036]
[1756955348678,0.089,4408.6,4408.1,0.3036]
[1756955348883,1.75392902,4408.5,4407.6,0.3036]
[1756955349070,0.56208234,4408.4,4408.0,0.1251]
[1756955349270,0.85638234,4408.3,4408.1,0.3036]
[1756955349475,0.56208234,4408.2,4408.1,0.3036]
[1756955349676,0.85638234,4408.2,4408.1,0.3036]
[1756955349881,0.56208234,4408.2,4408.1,0.3036]
[1756955352078,0.85818234,4408.2,4408.1,0.3036]
[1756955352279,0.85818234,4408.2,4407.6,0.3063]
[1756955352581,0.56208234,4408.1,4407.5,0.1251]
[1756955352782,0.56208234,4408.0,4407.6,0.3063]
[1756955352982,0.56208234,4407.9,4407.6,0.3063]
[1756955353180,0.56208234,4407.8,4407.6,0.3063]
[1756955353482,0.56208234,4407.7,4407.6,0.3063]
[1756955356882,0.56208234,4407.7,4407.6,4.3063]
[1756955357082,0.1134,4407.9,4407.6,10.11655998]
[1756955357283,0.1134,4407.9,4407.7,0.3063]
[1756955357486,0.56051617,4407.8,4407.5,0.1251]
[1756955357685,0.56051617,4407.7,4407.6,0.3063]
[1756955357887,0.56051617,4407.8,4407.6,0.3063]
[1756955360289,0.1134,4407.9,4407.6,0.3063]
[1756955360485,0.1134,4407.9,4407.8,0.3063]
[1756955360788,0.56064915,4407.9,4407.8,0.3063]
[1756955360983,0.2961,4407.9,4407.8,0.3063]
[1756955361187,0.56064915,4407.9,4407.8,0.3063]
[1756955361391,0.1899,4407.9,4407.8,0.6969]
[1756955361582,0.75054915,4407.9,4407.8,0.6969]
[1756955362693,0.56064915,4407.9,4407.8,0.6969]
[1756955362991,1.05369391,4408.0,4407.9,0.3063]
[1756955363194,1.24359278,4408.0,4407.9,0.3063]
[1756955364089,0.94749278,4408.0,4407.9,0.6969]
[1756955364492,0.94749278,4408.0,4406.0,0.4207]
[1756955364493,10.35478937,4408.0,4406.0,0.4207]
[1756955364686,1.49113179,4407.3,4406.0,0.4207]
[1756955364986,0.2961,4407.1,4406.0,0.4207]
[1756955365289,0.2961,4406.9,4406.0,0.4207]
[1756955365491,0.2961,4406.7,4406.0,0.3063]
[1756955365784,0.85689278,4406.6,4406.0,0.3063]
[1756955365989,0.56079278,4406.5,4405.9,0.5]
[1756955366192,0.2027,4407.0,4406.0,0.3063]
[1756955366193,0.2961,4406.6,4406.0,0.3063]
[1756955366687,0.2961,4406.6,4406.0,0.1144]
[1756955366988,0.2961,4406.6,4406.1,0.3063]
[1756955367184,0.2027,4407.0,4406.1,0.3063]
[1756955367379,0.55975892,4406.9,4406.1,0.3063]
[1756955367579,0.55975892,4406.8,4406.1,0.3063]
[1756955367785,0.4988,4407.0,4406.1,0.3063]
[1756955367992,0.55949427,4406.9,4406.1,0.3063]
[1756955368186,0.3851,4407.0,4406.1,0.3063]
[1756955368491,0.089,4407.0,4406.6,0.3063]
[1756955368691,0.089,4407.4,4406.6,0.3063]
[1756955369191,0.2961,4407.3,4406.6,0.3063]
[1756955370591,0.089,4407.4,4406.6,0.3063]
[1756955370991,0.2961,4407.2,4406.1,0.3063]
[1756955371393,0.2961,4407.2,4405.9,0.5]
[1756955371394,0.0664,4407.0,4405.9,0.5]
[1756955371691,0.2961,4406.8,4405.9,0.5]
[1756955371885,0.55889752,4406.7,4405.9,0.5]
[1756955372085,0.2961,4406.6,4405.9,0.5]
[1756955372285,0.2961,4406.6,4405.9,0.8063]
[1756955372686,0.2961,4406.6,4406.0,0.1144]
[1756955373187,0.0664,4407.0,4405.9,0.5]
[1756955373188,0.3956,4406.0,4405.9,0.5]
[1756955373493,0.4846,4406.0,4405.9,0.5]
[1756955373685,0.3851,4406.0,4405.9,0.5]
[1756955374993,0.4846,4406.0,4405.9,0.5]
[1756955375891,4.4846,4406.0,4405.9,0.5]
[1756955376594,4.8713,4406.0,4405.9,0.5]
[1756955377296,0.089,4406.0,4405.9,1.1969]
[1756955377496,0.4757,4406.0,4405.9,1.1969]
[1756955378588,0.089,4406.0,4405.9,1.1969]
[1756955378788,0.089,4406.3,4406.0,0.4207]
[1756955378988,0.089,4406.2,4406.1,0.3063]
[1756955379498,0.3851,4406.8,4406.1,0.3063]
[1756955379795,0.089,4406.7,4406.6,0.3063]
[1756955380586,0.089,4407.2,4406.1,0.3063]
[1756955380884,0.2961,4407.1,4406.1,0.3063]
[1756955381089,0.089,4407.4,4406.1,0.3063]
[1756955381597,0.089,4407.4,4407.0,0.1144]
[1756955381793,0.089,4408.0,4407.1,0.3063]
[1756955382698,0.089,4408.0,4407.6,0.2995]
[1756955382898,0.089,4407.9,4407.6,0.2995]
[1756955383100,0.089,4407.8,4407.7,5.14203659]
[1756955383794,0.1134,4407.9,4407.8,0.2995]
[1756955384100,0.089,4409.0,4407.8,4.2995]
[1756955384298,0.089,4408.9,4407.8,0.2995]
[1756955384495,0.089,4408.8,4408.5,0.1195]
[1756955385188,0.089,4408.8,4408.6,0.2995]
[1756955385592,0.089,4408.8,4408.5,0.1195]
[1756955385593,0.089,4409.1,4409.0,0.1195]
[1756955385897,0.089,4409.1,4409.0,0.419]
[1756955386096,0.2972,4409.8,4409.0,0.419]
[1756955386694,0.1132,4409.7,4409.0,0.419]
[1756955386898,0.1174,4409.5,4408.6,0.242]
[1756955387199,0.2972,4409.4,4408.3,0.2995]
[1756955387399,0.089,4409.3,4408.6,0.2995]
[1756955387701,0.2972,4409.2,4408.6,0.2995]
[1756955388899,0.089,4409.3,4408.6,0.2995]
[1756955389397,0.089,4409.3,4409.0,0.1195]
[1756955389599,0.089,4409.3,4409.1,0.2995]
[1756955390299,0.2972,4409.2,4409.1,0.2995]
[1756955390598,0.089,4409.3,4409.1,0.2995]
[1756955390906,0.089,4409.5,4409.1,0.2995]
[1756955391202,0.089,4409.5,4409.4,5.14203659]
[1756955392194,0.089,4409.7,4409.4,5.14203659]
[1756955392404,0.089,4410.5,4410.0,0.1195]
[1756955392698,0.2972,4410.6,4410.1,0.2995]
[1756955393095,0.4103,4410.7,4410.1,0.2995]
[1756955396101,0.4103,4410.7,4409.1,0.2995]
[1756955396102,0.2972,4410.4,4409.1,0.2995]
[1756955396399,0.2972,4410.2,4409.1,0.2995]
[1756955397305,0.089,4410.1,4409.1,0.2995]
[1756955397499,0.089,4410.1,4409.3,0.2995]
[1756955399209,0.2972,4410.0,4409.3,0.2995]
[1756955401004,0.4146,4410.0,4409.3,0.2995]
[1756955401210,0.2972,4409.8,4408.6,0.2995]
[1756955401409,0.1174,4409.5,4408.6,0.2995]
[1756955401710,0.3862,4409.4,4408.6,0.2995]
[1756955404207,0.7881,4409.4,4409.3,0.4941]
[1756955404804,0.2016,4408.6,4408.5,0.3141]
[1756955405003,0.2906,4408.6,4408.5,0.8047]
[1756955405806,0.089,4408.6,4408.5,0.8047]
[1756955406106,0.089,4409.2,4409.1,0.6852]
[1756955406307,0.4909,4409.2,4408.5,0.1195]
[1756955406513,0.7881,4409.2,4408.6,0.2995]
[1756955407115,0.4909,4409.2,4409.1,0.6852]
[1756955407511,0.2906,4409.2,4409.1,0.6852]
[1756955408014,0.849609,4409.2,4409.1,0.6852]
[1756955408418,0.089,4409.2,4409.1,0.6852]
[1756955408913,0.64847697,4409.2,4409.1,0.6852]
[1756955409103,0.089,4409.2,4409.1,4.6852]
[1756955410911,0.64973178,4409.2,4409.1,0.6852]
[1756955411121,0.85133178,4409.2,4409.1,0.6852]
[1756955411311,0.64973178,4409.2,4409.1,0.6852]
[1756955411510,0.1132,4409.6,4409.5,0.7816]
[1756955411819,0.2972,4410.2,4410.1,0.1946]
[1756955411820,0.4988,4410.2,4410.1,0.1946]
[1756955412017,0.6991,4410.2,4410.1,0.1946]
[1756955412912,0.6991,4410.2,4410.1,0.7114]
[1756955413113,0.6991,4410.2,4410.1,0.4011]
[1756955413411,0.4019,4410.2,4409.1,0.3103]
[1756955413723,0.3031,4409.9,4409.1,0.3103]
[1756955416023,0.3031,4410.3,4408.8,0.3103]
[1756955416616,1.19503179,4410.2,4408.8,0.3103]
[1756955416815,0.3031,4409.9,4408.8,0.3103]
[1756955418525,0.3031,4409.9,4409.0,4.95643659]
[1756955418723,0.3031,4409.9,4409.1,0.3103]
[1756955419022,0.7088,4409.9,4409.8,0.2098]
[1756955419421,0.7088,4409.9,4408.8,0.3103]
[1756955419622,0.3031,4409.8,4408.8,0.3103]
[1756955422023,0.5088,4409.8,4409.7,0.7266]
[1756955422227,0.3031,4410.0,4409.8,0.3103]
[1756955422425,0.3031,4410.0,4409.9,0.7266]
[1756955422426,0.5088,4410.0,4409.9,0.7266]
[1756955423330,0.117,4410.5,4410.0,0.3103]
[1756955423628,0.5227,4410.5,4410.4,0.2098]
[1756955423829,1.08398867,4410.5,4410.4,0.2098]
[1756955424029,1.38708867,4410.5,4410.4,0.2098]
[1756955424225,1.38708867,4410.5,4410.4,0.7266]
[1756955424531,1.27008867,4410.5,4410.4,0.7266]
[1756955425231,1.38708867,4410.5,4410.4,0.4163]
[1756955426126,1.27008867,4410.5,4410.4,0.7266]
[1756955426331,1.38708867,4410.5,4410.4,0.2098]
[1756955427342,1.27008867,4410.5,4410.4,0.7266]
[1756955427638,0.1131,4410.8,4410.4,0.7266]
[1756955427840,0.3031,4410.6,4410.5,0.3103]
[1756955428144,1.06985425,4410.6,4410.5,0.7266]
[1756955428443,0.1131,4410.8,4410.6,0.3103]
[1756955428643,0.3031,4411.4,4410.8,0.3103]
[1756955428840,0.76667371,4411.3,4411.2,0.4163]
[1756955429038,1.06977371,4411.3,4411.2,0.7266]
[1756955429441,0.5088,4411.3,4411.2,0.7266]
[1756955429639,0.3031,4411.2,4410.4,0.3103]
[1756955429835,0.4201,4411.0,4410.4,0.53701]
[1756955430040,0.117,4411.0,4410.4,0.4163]
[1756955430240,0.5227,4411.0,4410.9,0.2098]
[1756955430440,0.5227,4411.0,4410.2,0.3103]
[1756955430647,0.56068525,4410.9,4409.7,0.3103]
[1756955430845,0.117,4411.0,4409.7,0.3103]
[1756955430846,0.56068525,4410.8,4409.7,0.53704]
[1756955431047,0.3031,4410.6,4409.7,0.53704]
[1756955431242,0.3031,4410.4,4409.7,0.53704]
[1756955431448,0.117,4410.5,4409.7,0.53704]
[1756955431644,0.3031,4410.3,4409.7,0.53704]
[1756955432752,0.3031,4410.3,4409.7,0.3103]
[1756955432952,0.3031,4410.3,4409.7,0.7266]
[1756955434052,0.3031,4410.3,4409.7,0.4163]
[1756955434254,0.5088,4410.3,4410.2,0.4163]
[1756955434557,0.5088,4410.3,4410.2,0.7266]
[1756955435254,0.117,4411.0,4410.2,0.4163]
[1756955435455,1.06980663,4410.9,4410.8,0.4163]
[1756955435957,1.26980663,4410.9,4410.8,0.4163]
[1756955437456,0.7088,4410.9,4410.8,0.7266]
[1756955437858,0.7088,4410.9,4410.8,0.4163]
[1756955439158,0.1131,4411.1,4410.8,0.7266]
[1756955439354,0.4162,4411.1,4410.9,0.3103]
[1756955439658,0.6219,4411.1,4411.0,0.7266]
[1756955439861,0.3031,4411.7,4411.0,0.5302]
[1756955440051,0.7088,4411.7,4411.6,0.4163]
[1756955440758,0.2057,4411.7,4411.6,0.7266]
[1756955440962,0.1131,4411.9,4411.6,0.7266]
[1756955441154,0.4162,4411.9,4411.8,0.4163]
[1756955441463,1.38234555,4411.9,4411.3,0.3103]
[1756955441653,0.8219,4411.9,4411.3,0.3103]
[1756955442255,0.8219,4411.9,4411.8,0.2098]
[1756955442455,0.7088,4411.9,4411.8,0.2098]
[1756955442860,0.7088,4411.9,4411.8,0.4044]
[1756955443057,0.7088,4411.9,4411.8,0.707]
[1756955443456,0.1131,4412.1,4411.8,0.4044]
[1756955443656,0.1131,4412.1,4412.0,0.8065]
[1756955444558,0.2908,4412.7,4412.0,0.5039]
[1756955444751,0.7029,4412.7,4412.6,0.39]
[1756955444956,0.7029,4412.7,4412.6,0.6926]
[1756955446359,0.7029,4412.7,4411.6,0.3026]
[1756955446657,0.7029,4411.7,4411.6,0.498]
[1756955446849,0.7029,4411.7,4411.6,0.1954]
[1756955448262,0.7029,4411.7,4411.2,0.3026]
[1756955449057,0.7029,4411.7,4410.1,0.40799]
[1756955449058,0.7029,4411.7,4410.6,0.3026]
[1756955449256,0.2908,4411.6,4410.7,0.24]
[1756955449563,0.7029,4410.8,4410.7,0.6926]
[1756955449864,0.7029,4410.8,4410.7,0.39]
[1756955450168,0.7029,4410.8,4410.7,0.6926]
[1756955450553,0.4954,4410.8,4410.7,0.6926]
[1756955450951,0.2908,4411.4,4410.7,0.6926]
[1756955451150,0.2908,4411.4,4410.8,0.3026]
[1756955451352,0.7029,4411.4,4411.3,0.1954]
[1756955452257,0.7029,4411.4,4411.3,0.6926]
[1756955452959,0.7029,4411.4,4411.3,0.39]
[1756955453265,0.1186,4412.0,4411.3,0.6926]
[1756955453561,0.1186,4412.5,4411.5,0.3026]
[1756955453755,0.4954,4412.8,4412.7,0.6926]
[1756955454063,0.7029,4412.8,4412.7,0.1954]
[1756955454259,0.2046,4412.3,4412.2,0.4354]
[1756955454565,0.4954,4412.3,4412.2,0.1954]
[1756955455056,0.7029,4412.3,4412.2,0.39]
[1756955455260,0.4954,4412.3,4412.2,0.6926]
[1756955456257,0.4954,4412.3,4412.2,0.39]
[1756955456258,0.7029,4412.3,4412.2,0.39]
[1756955456461,0.2908,4412.2,4411.8,0.3026]
[1756955456661,0.7029,4412.0,4411.9,0.4354]
[1756955456864,0.8215,4412.0,4411.9,0.1954]
[1756955457567,0.8215,4412.0,4411.9,0.39]
[1756955458363,0.8215,4412.0,4411.0,40.9139]
[1756955458556,0.1186,4412.0,4411.0,41.4565]
[1756955458756,0.2908,4411.9,4411.0,0.5426]
[1756955459054,0.4954,4411.9,4411.8,0.1954]
[1756955459759,0.7029,4411.9,4411.8,0.1954]
[1756955460163,0.7029,4411.9,4411.5,0.3026]
[1756955460164,0.2908,4411.8,4411.3,0.24]
[1756955460464,0.7029,4411.4,4411.3,0.4354]
[1756955460655,0.4121,4411.4,4411.3,0.1954]
[1756955460859,0.1186,4412.0,4411.3,0.6926]
[1756955461060,0.4121,4411.4,4411.3,0.1954]
[1756955461261,0.2908,4411.3,4410.5,0.3026]
[1756955461461,0.7029,4410.6,4410.5,0.39]
[1756955461762,0.2046,4410.1,4410.0,0.1954]
[1756955461966,0.4121,4410.1,4410.0,0.1954]
[1756955462364,0.7029,4410.1,4410.0,0.1954]
[1756955462966,0.7029,4410.1,4409.9,0.24]
[1756955462967,0.2046,4409.8,4409.7,0.738]
[1756955463164,0.2046,4409.8,4409.7,0.498]
[1756955463165,0.4954,4409.8,4409.7,0.498]
[1756955463469,0.4954,4409.8,4409.7,0.1954]
[1756955463470,0.7029,4409.8,4409.7,0.1954]
[1756955463659,0.1186,4409.5,4409.4,0.24]
[1756955463860,0.4094,4409.5,4409.4,0.24]
[1756955465064,0.4094,4410.5,4409.6,0.3026]
[1756955465269,0.4094,4410.5,4409.7,5.59804712]
[1756955465670,0.4094,4410.5,4409.8,0.3026]
[1756955465867,0.2908,4410.5,4409.8,0.3026]
[1756955466464,0.1186,4411.0,4409.8,0.3026]
[1756955466669,0.1186,4411.0,4409.5,0.1139]
[1756955466670,0.2908,4410.9,4410.4,0.3026]
[1756955466971,0.2908,4410.9,4410.6,0.3026]
[1756955467158,0.2908,4410.9,4410.5,0.1139]
[1756955467675,0.2908,4410.9,4410.6,0.3026]
[1756955467873,0.2908,4410.9,4410.5,0.1139]
[1756955468171,0.4094,4410.5,4410.4,0.24]
[1756955469964,0.2908,4410.5,4410.4,0.5426]
[1756955470272,0.4094,4410.5,4409.9,0.24]
[1756955471370,0.4954,4410.5,4410.4,0.6926]
[1756955471768,0.8215,4410.5,4410.4,0.39]
[1756955471974,0.8215,4410.5,4410.4,0.1954]
[1756955472770,0.8215,4410.5,4409.9,0.3026]
[1756955472977,0.8215,4410.5,4409.7,0.24]
[1756955473171,0.8215,4410.5,4409.5,0.24]
[1756955474674,0.5307,4410.5,4409.5,5.83804712]
[1756955474870,0.3136,4410.4,4409.6,0.2993]
[1756955475574,0.3136,4409.6,4409.5,0.24]
[1756955475873,0.7001,4409.6,4409.5,0.24]
[1756955476074,0.7001,4409.6,4409.5,0.4403]
[1756955476971,0.7001,4409.6,4409.5,0.2003]
[1756955478271,0.3865,4409.1,4409.0,0.4403]
[1756955478570,0.7001,4409.1,4409.0,0.4403]
[1756955478767,0.7001,4409.1,4409.0,0.9295]
[1756955478971,0.1969,4409.1,4409.0,0.9295]
[1756955479173,0.5105,4409.1,4409.0,0.9295]
[1756955479578,0.5105,4409.1,4409.0,5.76884014]
[1756955479777,0.1149,4409.5,4409.0,5.76884014]
[1756955479982,0.3136,4410.4,4409.9,0.6895]
[1756955480176,0.5105,4410.3,4410.2,4.83934014]
[1756955480475,0.7001,4410.3,4410.2,5.03964014]
[1756955481271,0.5014,4410.0,4409.9,0.24]
[1756955481476,0.815,4410.0,4409.9,0.24]
[1756955481668,0.815,4410.0,4409.4,4.83934014]
[1756955481669,0.815,4410.0,4409.4,0.24]
[1756955482076,0.1133,4409.9,4409.4,0.5393]
[1756955482275,0.5105,4409.5,4409.4,0.9295]
[1756955484181,0.815,4409.5,4409.4,0.24]
[1756955484485,0.3136,4409.4,4408.7,32.651]
[1756955484669,0.1969,4408.9,4408.8,0.4403]
[1756955484873,0.5105,4408.9,4408.8,0.4403]
[1756955485071,0.7001,4408.9,4407.9,0.2993]
[1756955485280,0.3136,4408.8,4408.0,5.07934014]
[1756955485478,0.1149,4409.0,4407.9,0.2993]
[1756955485682,0.5105,4408.1,4408.0,0.6302]
[1756955486685,0.5105,4408.1,4408.0,0.9295]
[1756955487176,0.3136,4409.4,4408.0,4.97076]
[1756955487385,0.5105,4409.2,4409.1,5.03964014]
[1756955487776,0.5105,4409.2,4408.9,0.24]
[1756955487777,0.3865,4409.2,4408.9,0.24]
[1756955488079,0.815,4409.0,4408.9,0.24]
[1756955488285,0.815,4409.0,4408.9,0.4403]
[1756955488984,0.4285,4409.0,4408.9,0.24]
[1756955489986,0.3136,4409.0,4408.9,0.5393]
[1756955490581,0.1149,4409.5,4408.9,0.24]
[1756955490882,0.1149,4409.5,4409.0,4.83934014]
[1756955491187,0.3136,4409.5,4409.0,4.95304014]
[1756955491780,0.3136,4409.8,4409.1,0.2993]
[1756955492284,0.3136,4409.8,4409.6,0.2993]
[1756955492482,0.1133,4409.9,4409.6,0.2993]
[1756955492883,0.1133,4409.9,4409.7,0.2993]
[1756955493085,0.4269,4409.9,4409.5,5.19304014]
[1756955493278,0.4269,4409.9,4409.6,0.2993]
[1756955493583,0.3136,4409.8,4409.6,0.2993]
[1756955494087,0.3136,4409.8,4409.5,5.19304014]
[1756955494696,0.3136,4409.8,4409.6,0.2993]
[1756955494887,0.3136,4410.4,4409.6,0.2993]
[1756955495793,0.1133,4410.3,4409.6,0.2993]
[1756955495989,0.3136,4409.9,4409.5,0.24]
[1756955496394,0.1149,4409.5,4409.3,0.178]
[1756955496596,0.3136,4409.4,4409.3,0.178]
[1756955497293,0.1149,4410.0,4409.4,0.2993]
[1756955497491,0.1149,4410.0,4409.5,4.83934014]
[1756955497698,0.1149,4410.0,4409.6,0.2993]
[1756955497699,0.3136,4410.0,4409.6,0.2993]
[1756955497883,0.3136,4410.0,4409.8,0.2993]
[1756955498287,0.3136,4410.0,4409.7,0.24]
[1756955498690,0.1133,4410.3,4409.8,0.40802]
[1756955498892,0.1133,4410.3,4410.2,5.13864014]
[1756955499090,0.3136,4410.6,4410.2,5.37864014]
[1756955499286,0.3136,4410.6,4410.2,0.24]
[1756955499492,0.3136,4410.9,4410.3,0.2993]
[1756955500498,0.1133,4410.8,4410.3,0.2993]
[1756955500693,0.1133,4410.8,4410.2,0.24]
[1756955500895,0.1133,4410.8,4410.3,0.2993]
[1756955501090,0.3136,4410.7,4410.2,0.24]
[1756955501596,0.1133,4410.8,4410.3,0.2993]
[1756955501797,0.3136,4410.7,4410.2,0.24]
[1756955501998,0.1133,4410.8,4410.3,0.3044]
[1756955502193,0.2855,4410.7,4410.2,0.24]
[1756955502694,0.3988,4410.8,4410.3,0.3044]
[1756955503490,0.1133,4410.8,4410.2,0.24]
[1756955503689,0.1133,4410.8,4410.2,0.5444]
[1756955503690,0.3988,4410.8,4410.2,0.5444]
[1756955503893,0.5898,4410.8,4410.7,0.2065]
[1756955504096,0.6736,4410.8,4410.7,0.2065]
[1756955505803,0.1133,4411.0,4410.8,0.3044]
[1756955506100,0.1133,4411.0,4410.8,0.3977]
[1756955506301,0.1133,4411.0,4410.9,0.7021]
[1756955506495,0.4765,4411.7,4411.6,0.7021]
[1756955506695,0.2855,4411.9,4411.8,0.3977]
[1756955506894,0.2855,4411.9,4411.8,0.7021]
[1756955507199,0.4765,4411.9,4411.8,0.7021]
[1756955507494,0.1149,4412.5,4411.8,0.7021]
[1756955507495,0.2855,4412.4,4411.8,0.7021]
[1756955507691,0.4765,4412.2,4412.1,5.54144014]
[1756955507893,0.1133,4412.3,4412.2,0.7021]
[1756955509203,0.2855,4412.6,4412.2,0.7021]
[1756955509394,0.2855,4412.9,4412.2,5.54144014]
[1756955509589,0.1213,4413.5,4412.2,5.23704014]
[1756955509794,0.2855,4413.4,4412.8,4.83934014]
[1756955509994,0.3881,4413.0,4412.9,0.4465]
[1756955510198,0.6736,4413.0,4412.9,0.4465]
[1756955510401,0.6736,4413.0,4412.9,0.6377]
[1756955510598,0.7949,4413.0,4412.9,0.6377]
[1756955510802,0.7949,4413.0,4412.9,0.24]
[1756955511094,0.7949,4413.0,4412.9,0.4465]
[1756955511699,0.6736,4413.0,4412.9,0.9421]
[1756955512402,0.4765,4413.0,4412.9,0.9421]
[1756955512904,0.1132,4413.2,4412.9,0.6377]
[1756955513100,0.3042,4413.2,4413.1,0.7021]
[1756955513298,0.1213,4413.0,4412.9,0.24]
[1756955513604,0.7949,4413.0,4412.9,0.24]
[1756955514300,0.7949,4413.0,4412.5,5.25794014]
[1756955514301,0.2855,4412.9,4411.9,0.3044]
[1756955514500,0.1133,4412.8,4412.0,0.24]
[1756955514800,0.2855,4412.7,4412.0,0.24]
[1756955515204,0.6736,4412.7,4412.6,0.2065]
[1756955515599,0.191,4412.7,4412.6,0.7021]
[1756955516001,0.4765,4412.7,4412.6,0.7021]
[1756955516506,0.1133,4412.8,4412.7,0.7021]
[1756955516802,0.4068,4413.5,4412.7,0.3977]
[1756955516998,0.4068,4413.5,4413.4,0.3977]
[1756955516999,0.7949,4413.5,4413.4,0.3977]
[1756955517204,0.6736,4413.5,4413.4,0.7021]
[1756955518193,0.4765,4413.5,4413.4,0.7021]
[1756955521008,0.4765,4412.7,4412.6,0.7021]
[1756955521314,0.1213,4412.5,4412.1,4.83934014]
[1756955521504,0.6736,4412.2,4412.1,5.04584014]
[1756955521704,0.6736,4412.2,4412.1,5.28584014]
[1756955522000,0.6736,4412.2,4412.1,5.78144014]
[1756955522204,0.2855,4412.9,4412.2,0.3044]
[1756955522608,0.3881,4412.3,4412.2,0.2065]
[1756955522811,0.2855,4412.2,4412.1,4.83934014]
[1756955523111,0.6736,4412.2,4412.1,5.28584014]
[1756955524115,0.2855,4413.4,4412.8,0.3044]
[1756955524311,0.4765,4413.4,4413.3,0.2065]
[1756955524507,0.6736,4413.4,4413.3,0.2065]
[1756955525208,0.6736,4413.4,4413.0,4.83934014]
[1756955525409,0.7949,4413.0,4412.9,0.24]
[1756955525611,0.6736,4412.8,4412.1,5.14374014]
[1756955525814,0.4765,4412.3,4412.2,0.6377]
[1756955526118,0.1213,4413.0,4412.2,0.9421]
[1756955526416,0.2855,4413.4,4412.8,0.3977]
[1756955526611,0.5897,4413.7,4413.6,0.3977]
[1756955526806,0.6736,4413.7,4413.6,0.3977]
[1756955527007,0.3881,4413.4,4413.3,0.24]
[1756955527206,0.6736,4413.4,4413.3,0.24]
[1756955528517,0.191,4412.4,4412.3,0.2065]
[1756955528717,0.3881,4412.4,4412.3,0.24]
[1756955528918,0.1213,4413.0,4412.3,0.9421]
[1756955529119,0.4765,4412.6,4412.5,5.04584014]
[1756955529318,0.4765,4412.6,4412.5,5.54144014]
[1756955529914,0.2855,4413.4,4412.6,0.3044]
[1756955530118,0.2855,4413.4,4412.5,4.95304014]
[1756955530119,0.2855,4413.4,4413.2,0.3044]
[1756955530324,0.2855,4413.4,4413.3,0.3044]
[1756955530824,0.2855,4413.4,4412.1,0.3044]
[1756955531029,0.2855,4413.4,4412.2,0.24]
[1756955531220,0.56380648,4413.3,4412.2,0.24]
[1756955531417,0.2855,4413.2,4412.2,0.24]
[1756955531619,0.2855,4412.9,4412.2,0.24]
[1756955532021,0.1213,4413.0,4412.4,4.83934014]
[1756955532222,0.85348961,4412.9,4412.5,0.24]
[1756955532427,0.1213,4413.0,4412.6,0.2918]
[1756955532627,0.5642896,4412.9,4412.6,0.2918]
[1756955532830,0.2892,4412.8,4412.5,0.24]
[1756955533228,0.4105,4413.5,4412.7,0.2918]
[1756955533428,0.56468676,4413.4,4412.9,4.83934014]
[1756955533722,0.2892,4413.2,4413.0,0.2918]
[1756955533924,0.2892,4413.4,4413.1,0.24]
[1756955534128,0.2892,4413.2,4413.1,0.24]
[1756955534323,0.85390315,4413.2,4413.1,0.24]
[1756955534530,0.85390315,4413.2,4413.1,0.5318]
[1756955535128,0.56470315,4413.2,4413.1,0.5318]
[1756955535328,0.2892,4413.7,4413.2,0.2918]
[1756955535527,0.2892,4413.7,4413.5,5.13114014]
[1756955535726,0.56568551,4413.6,4413.5,5.37114014]
[1756955536029,0.85488551,4413.6,4413.5,5.37114014]
[1756955537631,0.56568551,4413.6,4413.5,5.37114014]
[1756955538229,0.56568551,4413.6,4413.5,0.5318]
[1756955538431,0.2892,4413.4,4412.0,4.83934014]
[1756955538624,0.1175,4412.5,4412.1,0.24]
[1756955538823,0.56568551,4412.4,4412.1,0.24]
[1756955539036,0.56568551,4412.3,4412.2,0.2918]
[1756955539233,0.56568551,4412.7,4412.2,0.24]
[1756955539432,0.2892,4412.4,4412.2,0.24]
[1756955539634,0.85488551,4412.3,4412.2,0.24]
[1756955540534,0.85488551,4412.3,4412.2,0.5318]
[1756955541037,0.85488551,4412.3,4412.2,0.24]
[1756955541426,2.0499173,4412.3,4412.2,0.24]
[1756955541637,0.85488551,4412.3,4412.2,0.24]
[1756955543034,0.56568551,4412.3,4411.4,5.88162738]
[1756955543332,0.85488551,4412.2,4411.5,0.24]
[1756955543545,0.2892,4411.9,4411.5,0.24]
[1756955543844,0.2892,4411.7,4411.6,0.24]
[1756955544140,0.85488551,4411.7,4411.5,0.24]
[1756955544343,0.2892,4411.7,4411.0,32.64]
[1756955544642,0.2892,4411.4,4411.1,0.24]
[1756955544840,0.1175,4411.5,4411.1,0.24]
[1756955545643,0.2892,4411.4,4411.1,0.24]
[1756955545844,0.1175,4411.5,4411.1,0.24]
[1756955546344,0.1175,4411.5,4411.1,0.4356]